bitfinex/quotes_ETHUSD_20241120
["timestamp","ask_amount","ask_price","bid_price","bid_amount"]
[1732085771722,3.21648,3109.0,3108.4,3.94954136]
[1732085771924,3.21644,3109.1,3108.5,4.50000414]
[1732085771925,6.43289,3109.1,3108.5,4.50000414]
[1732085772100,3.21647,3109.0,3108.5,4.50000414]
[1732085772295,3.21647,3109.0,3108.6,0.05970772]
[1732085773828,3.21636,3109.1,3108.6,0.05970772]
[1732085773996,3.21636,3109.1,3108.6,0.51567891]
[1732085775503,3.21626,3109.2,3108.7,0.805]
[1732085775708,3.21626,3109.2,3108.7,4.02176]
[1732085775903,1.33938859,3109.6,3108.9,4.02148]
[1732085775904,3.21592,3109.6,3108.9,4.02148]
[1732085776117,3.21595,3109.5,3109.0,3.21643]
[1732085776292,3.21595,3109.5,3109.0,3.27605034]
[1732085777039,3.21605,3109.4,3109.0,0.05962034]
[1732085777728,3.21616,3109.3,3109.0,0.05962034]
[1732085778610,6.432,3109.5,3109.0,0.05962034]
[1732085778812,3.21607,3109.4,3109.0,0.05962034]
[1732085779625,4.03659,3109.7,3109.0,0.05962034]
[1732085779830,3.21602,3109.5,3109.0,0.05962034]
[1732085780736,3.21607,3109.4,3109.0,0.05962034]
[1732085780914,3.21602,3109.5,3109.0,0.05962034]
[1732085781436,6.43205,3109.5,3109.0,0.05962034]
[1732085781740,3.21602,3109.5,3109.0,0.05962034]
[1732085782536,6.43205,3109.5,3109.0,0.05962034]
[1732085782737,3.21602,3109.5,3109.0,0.05962034]
[1732085782912,3.21605,3109.4,3109.0,0.05962034]
[1732085788473,6.43218,3109.4,3109.0,0.05962034]
[1732085788771,3.21625,3109.3,3109.0,0.05962034]
[1732085790242,3.21603,3109.5,3109.0,0.05962034]
[1732085790441,3.21593,3109.6,3109.0,0.05962034]
[1732085790669,3.21593,3109.6,3109.1,3.21636]
[1732085790908,6.43186,3109.6,3109.0,0.05962034]
[1732085791169,3.21587,3109.6,3109.2,0.05754214]
[1732085791346,3.21587,3109.6,3109.3,0.05751455]
[1732085791673,3.21587,3109.6,3109.1,0.7509]
[1732085791845,3.21587,3109.6,3109.4,0.05749009]
[1732085792048,3.21587,3109.6,3109.1,3.96726]
[1732085792525,3.21595,3109.5,3109.2,0.05753901]
[1732085794667,3.21583,3109.7,3109.2,0.05753901]
[1732085794989,3.21585,3109.6,3109.2,0.05753901]
[1732085795646,3.21606,3109.4,3109.2,0.05753901]
[1732085796255,3.21585,3109.6,3109.2,0.05753901]
[1732085796671,3.21596,3109.5,3109.2,0.05753901]
[1732085797085,3.21609,3109.4,3109.2,0.05753901]
[1732085797247,3.21615,3109.3,3109.2,0.05753901]
[1732085802210,5.33268845,3109.3,3109.2,0.05753901]
[1732085802357,3.21641,3109.1,3108.8,0.7971]
[1732085802558,3.21628,3109.2,3108.9,0.05757297]
[1732085802759,3.21614,3109.4,3108.9,0.05757297]
[1732085802953,3.21625,3109.3,3108.9,0.05757297]
[1732085803265,3.21626,3109.2,3108.9,0.05757297]
[1732085806986,3.21646,3109.0,3108.9,0.05757297]
[1732085807194,3.21696,3108.6,3108.0,3.21743]
[1732085807400,4.55575859,3109.1,3108.3,0.7971]
[1732085807401,3.21685,3108.7,3108.3,0.7971]
[1732085807713,3.21695,3108.6,3108.4,0.0559643]
[1732085810214,3.21698,3108.5,3108.4,0.0559643]
[1732085811971,3.21739,3108.1,3108.0,0.7971]
[1732085812175,3.21739,3108.1,3108.0,0.05386047]
[1732085812408,3.21739,3108.1,3107.6,0.7971]
[1732085812711,3.21761,3107.9,3107.7,0.0539833]
[1732085812921,3.21751,3108.0,3107.7,0.0539833]
[1732085812922,3.21771,3107.8,3107.7,0.0539833]
[1732085813531,3.21751,3108.0,3107.7,0.0539833]
[1732085814926,3.21766,3107.9,3107.7,0.0539833]
[1732085820416,3.21751,3108.0,3107.7,0.0539833]
[1732085820650,3.21765,3107.9,3107.7,0.0539833]
[1732085821082,3.21751,3108.0,3107.7,0.0539833]
[1732085821234,3.2176,3107.9,3107.7,0.0539833]
[1732085821689,3.21751,3108.0,3107.7,0.0539833]
[1732085822374,3.21762,3107.9,3107.7,0.0539833]
[1732085822565,3.21751,3108.0,3107.7,0.0539833]
[1732085822765,3.21771,3107.8,3107.7,0.0539833]
[1732085823239,3.21771,3107.8,3107.3,0.7971]
[1732085823436,3.21789,3107.7,3107.4,0.05404126]
[1732085823640,3.21799,3107.6,3107.4,0.05404126]
[1732085824055,3.99978,3107.8,3107.4,0.05404126]
[1732085824250,7.21755,3107.8,3107.4,0.05404126]
[1732085824494,3.21785,3107.7,3107.4,0.05404126]
[1732085827983,3.21793,3107.6,3107.4,0.05404126]
[1732085828169,3.21802,3107.5,3107.4,0.05404126]
[1732085828480,3.21825,3107.3,3107.0,0.7971]
[1732085828708,6.43655,3107.3,3107.0,0.7971]
[1732085828918,6.43655,3107.3,3107.1,0.05229493]
[1732085829066,3.21825,3107.3,3107.1,0.05229493]
[1732085829271,3.21833,3107.2,3107.1,0.05229493]
[1732085830269,3.21833,3107.2,3106.8,0.7971]
[1732085830469,3.21833,3107.2,3107.1,0.05231548]
[1732085830712,3.21833,3107.2,3106.8,0.7971]
[1732085830875,3.21833,3107.2,3107.1,0.05231548]
[1732085831071,3.21833,3107.2,3106.8,0.7971]
[1732085831315,3.21833,3107.2,3107.1,0.05231548]
[1732085831475,3.21833,3107.2,3106.8,0.7971]
[1732085831675,3.21833,3107.2,3107.1,0.05231548]
[1732085831985,3.21833,3107.2,3107.1,0.0523237]
[1732085832186,3.21833,3107.2,3106.8,0.7971]
[1732085832417,3.21833,3107.2,3106.9,0.05237269]
[1732085833970,0.8176,3107.7,3107.2,3.21827]
[1732085834202,3.21787,3107.7,3107.3,0.0522854]
[1732085835673,4.03522,3107.9,3107.3,0.0522854]
[1732085835988,3.21747,3108.1,3107.4,3.21811]
[1732085836203,3.21747,3108.1,3107.5,0.87250861]
[1732085836908,3.2175,3108.0,3107.5,0.87250861]
[1732085839646,3.2175,3108.0,3107.5,4.09050861]
[1732085839801,3.2175,3108.0,3107.5,4.09051861]
[1732085840342,3.21762,3107.9,3107.5,0.87250861]
[1732085840555,2.51857045,3108.0,3107.5,0.87250861]
[1732085840705,3.21777,3107.8,3107.5,0.05230861]
[1732085840904,4.03537,3107.8,3107.2,4.03851]
[1732085841214,4.03537,3107.8,3107.6,0.04884954]
[1732085841402,3.21781,3107.7,3107.2,4.03851]
[1732085841604,3.21781,3107.7,3107.3,0.048923]
[1732085841808,3.21793,3107.6,3107.3,0.048923]
[1732085842031,4.02918299,3107.6,3107.3,0.048923]
[1732085842236,4.02918299,3107.6,3107.0,4.03868]
[1732085842441,3.21793,3107.6,3107.1,0.04896308]
[1732085843048,3.21775,3107.8,3107.2,4.03852]
[1732085843249,3.21775,3107.8,3107.3,0.04892233]
[1732085843407,4.07697786,3107.8,3107.3,0.04892233]
[1732085846244,3.21782,3107.7,3107.3,0.04892233]
[1732085846757,3.21812,3107.4,3107.3,0.04892233]
[1732085847041,3.21812,3107.4,3106.9,0.7712]
[1732085847214,3.21812,3107.4,3107.0,0.04894422]
[1732085847430,3.21829,3107.3,3107.0,0.04894422]
[1732085850738,4.01065,3107.5,3107.0,0.04894422]
[1732085850938,3.21784,3107.7,3107.0,3.26742422]
[1732085851140,3.539624,3107.7,3107.0,3.26739422]
[1732085851460,6.757524,3107.7,3107.1,3.21842]
[1732085851637,6.757524,3107.7,3107.2,0.04724973]
[1732085851839,3.21794,3107.6,3107.2,0.04724973]
[1732085852820,0.7926,3107.8,3107.3,0.7712]
[1732085853026,0.7926,3108.0,3107.5,3.21801]
[1732085853261,4.01012,3108.0,3107.6,0.04715178]
[1732085853433,1.033007,3107.9,3107.4,3.21804]
[1732085853643,1.033007,3107.9,3107.5,0.04717627]
[1732085854529,4.01012,3108.0,3107.5,0.04717627]
[1732085854727,7.87685859,3108.1,3107.5,0.04717627]
[1732085855068,6.53747,3108.1,3107.5,0.04717627]
[1732085855285,3.21752,3108.0,3107.5,0.04717627]
[1732085856869,6.53747,3108.1,3107.5,3.26516627]
[1732085857563,3.2,3108.2,3107.9,3.21756]
[1732085857738,6.41729,3108.2,3107.7,3.21781]
[1732085857936,6.41729,3108.2,3108.0,0.04704977]
[1732085858144,7.27221786,3108.2,3107.7,3.21781]
[1732085858335,6.41729,3108.2,3108.1,0.0470253]
[1732085858538,6.41729,3108.2,3107.6,0.7712]
[1732085858539,3.2174,3108.1,3107.6,0.7712]
[1732085858945,3.2174,3108.1,3107.6,3.98909]
[1732085859757,6.41735,3108.2,3107.6,3.98909]
[1732085860652,3.2174,3108.1,3107.6,3.98909]
[1732085861165,3.2174,3108.1,3107.7,0.04712321]
[1732085861464,4.04211,3107.9,3107.7,0.04712321]
[1732085861762,4.04211,3107.9,3107.3,3.9873]
[1732085862161,4.04211,3107.9,3107.4,0.04719551]
[1732085862582,4.04211,3107.9,3107.4,3.26530551]
[1732085862879,3.21761,3107.9,3107.4,3.26530551]
[1732085863084,3.21761,3107.9,3107.4,0.04719551]
[1732085863386,3.21781,3107.7,3107.4,0.04719551]
[1732085863687,3.21781,3107.7,3107.5,0.04717103]
[1732085863989,3.21761,3107.9,3107.5,0.04717103]
[1732085864188,3.21761,3107.9,3107.3,3.98732]
[1732085864503,3.21756,3108.0,3107.4,3.21806]
[1732085864683,3.21761,3107.9,3107.4,3.26524728]
[1732085864987,3.21761,3107.9,3107.4,0.04718728]
[1732085870654,6.4353,3107.9,3107.4,0.04718728]
[1732085870992,3.21781,3107.7,3107.4,0.04718728]
[1732085871665,7.24243,3107.9,3107.4,0.04718728]
[1732085871865,4.02474,3107.9,3107.3,0.7691]
[1732085872066,1.33938859,3108.0,3107.4,0.04718762]
[1732085872067,3.21789,3107.7,3107.4,0.04718762]
[1732085872281,3.21792,3107.6,3107.4,0.04718762]
[1732085872451,3.21792,3107.6,3107.1,0.7752]
[1732085872651,3.21792,3107.6,3107.2,0.04723659]
[1732085873770,3.21812,3107.4,3107.2,0.04723659]
[1732085874251,3.21812,3107.4,3106.9,0.7752]
[1732085874252,6.43634,3107.4,3106.9,0.7752]
[1732085874782,3.21812,3107.4,3107.0,0.04731532]
[1732085876592,6.43633,3107.4,3107.0,0.04731532]
[1732085876967,0.7868,3107.3,3107.0,0.04731532]
[1732085877173,3.21833,3107.2,3107.0,0.04731532]
[1732085877704,3.21833,3107.2,3106.7,0.7752]
[1732085877887,3.2185,3107.1,3106.7,0.7752]
[1732085886163,3.2185,3107.1,3106.8,0.04724729]
[1732085887613,0.7868,3107.3,3106.8,0.04724729]
[1732085888262,3.21834,3107.2,3106.8,0.04724729]
[1732085889765,0.7868,3107.3,3106.8,0.04724729]
[1732085890074,0.02,3107.9,3106.4,4.0449]
[1732085890075,3.99164,3106.9,3106.4,0.8258]
[1732085890276,3.21914,3106.5,3106.2,0.8258]
[1732085890504,3.21914,3106.5,3105.8,6.21969]
[1732085890505,3.21917,3106.4,3105.9,0.7894]
[1732085890663,3.21928,3106.3,3105.9,0.7894]
[1732085890867,3.21928,3106.3,3105.9,1.190309]
[1732085891307,4.01824,3106.5,3105.9,1.190309]
[1732085891484,3.21916,3106.4,3105.9,4.409979]
[1732085891817,3.21916,3106.4,3105.9,4.00907]
[1732085891981,4.01824,3106.5,3105.9,0.7894]
[1732085891982,3.21933,3106.3,3105.9,0.7894]
[1732085892512,3.21937,3106.2,3105.9,0.7894]
[1732085892714,3.21937,3106.2,3105.5,1.33938859]
[1732085892715,0.64387,3106.2,3105.3,0.7894]
[1732085893012,1.33938859,3106.3,3105.7,3.21985]
[1732085893013,0.7991,3106.1,3105.7,3.21985]
[1732085893216,0.7991,3106.4,3105.9,3.21962]
[1732085893507,3.21917,3106.4,3106.0,0.7894]
[1732085893969,3.21927,3106.3,3106.0,0.7894]
[1732085894817,3.21927,3106.3,3105.8,0.7894]
[1732085895109,3.21955,3106.1,3105.6,0.7894]
[1732085895481,0.7991,3106.2,3105.7,3.21981]
[1732085898113,3.21899,3106.6,3105.8,3.21971]
[1732085898316,3.21922,3106.4,3105.8,3.21971]
[1732085898517,4.01816,3106.5,3105.9,4.00901]
[1732085899008,3.21899,3106.6,3106.0,3.21954]
[1732085899595,3.21907,3106.5,3106.0,3.21954]
[1732085900312,3.21899,3106.6,3106.1,3.21945]
[1732085900517,4.01765,3107.0,3106.2,0.7894]
[1732085900726,3.2187,3106.9,3106.3,3.21919]
[1732085900892,6.41847,3107.1,3106.5,3.21898]
[1732085901082,6.41847,3107.1,3106.6,0.83518708]
[1732085901717,3.2,3107.1,3106.6,0.83518708]
[1732085901920,3.2,3107.1,3106.6,4.05407708]
[1732085902911,6.41843,3107.1,3106.6,4.05407708]
[1732085903910,6.41843,3107.1,3106.6,0.83518708]
[1732085905181,9.63696,3107.1,3106.6,0.83518708]
[1732085905615,6.41843,3107.1,3106.6,0.83518708]
[1732085906532,3.21864,3106.9,3106.6,0.83518708]
[1732085907023,4.55802859,3106.9,3106.6,0.04578708]
[1732085907321,4.55802859,3106.9,3106.2,4.02381]
[1732085907322,1.104764,3106.8,3106.2,4.02381]
[1732085907527,0.7829,3106.8,3106.3,0.04586058]
[1732085907722,3.21884,3106.7,3106.3,0.04586058]
[1732085907923,4.55822859,3106.7,3106.3,0.04586058]
[1732085908125,3.21912,3106.5,3106.3,0.04586058]
[1732085908289,3.21912,3106.5,3106.0,0.8045]
[1732085908488,3.21912,3106.5,3106.1,0.04591781]
[1732085908733,3.99685486,3106.5,3106.1,0.04591781]
[1732085909607,3.21919,3106.4,3106.1,0.04591781]
[1732085909817,3.21927,3106.3,3106.1,0.04591781]
[1732085910485,3.21936,3106.2,3106.1,0.04591781]
[1732085910680,3.21936,3106.2,3105.8,0.8045]
[1732085910879,3.21936,3106.2,3105.9,0.04592784]
[1732085911442,3.21949,3106.1,3105.9,0.04592784]
[1732085911720,3.21957,3106.0,3105.5,0.8045]
[1732085911926,3.21948,3106.1,3105.6,0.04600137]
[1732085912129,3.21974,3105.9,3105.4,4.02469]
[1732085912294,3.21974,3105.9,3105.7,0.04597686]
[1732085912512,3.21974,3105.9,3105.4,4.02469]
[1732085912738,3.21974,3105.9,3105.5,0.04605634]
[1732085913044,0.7829,3106.0,3105.5,0.04605634]
[1732085913212,4.00249,3106.0,3105.5,0.04605634]
[1732085913737,1.33938859,3106.3,3105.6,3.21993]
[1732085913738,4.00218,3106.3,3105.6,3.21993]
[1732085913940,3.21943,3106.2,3105.6,3.21991]
[1732085914107,3.21943,3106.2,3105.7,0.04600731]
[1732085914309,3.21943,3106.2,3105.7,3.26588731]
[1732085914835,3.21948,3106.1,3105.7,0.04600731]
[1732085915038,3.619713,3106.1,3105.7,0.04600731]
[1732085915239,3.619713,3106.1,3105.6,3.21997]
[1732085915441,3.21948,3106.1,3105.8,0.0459828]
[1732085915619,3.21948,3106.1,3105.7,0.04600731]
[1732085915820,3.21948,3106.1,3105.6,3.21997]
[1732085916028,3.21948,3106.1,3105.8,0.0459828]
[1732085916236,3.21948,3106.1,3105.7,0.04600731]
[1732085916237,3.21966,3106.0,3105.7,0.04600731]
[1732085916441,3.21966,3106.0,3105.9,0.0459624]
[1732085916604,3.21966,3106.0,3105.4,0.8045]
[1732085916605,3.59504369,3106.0,3105.8,0.04598691]
[1732085916805,3.21966,3106.0,3105.4,0.8045]
[1732085917174,3.21969,3105.9,3105.5,0.04606456]
[1732085917321,4.00268,3105.8,3105.5,0.04606456]
[1732085919141,0.7829,3105.8,3105.5,0.04606456]
[1732085919315,4.00257,3106.0,3105.5,0.04606456]
[1732085920337,0.833,3105.3,3104.6,0.7643]
[1732085920649,3.2206,3105.1,3104.6,0.7643]
[1732085921344,4.08193186,3105.1,3104.6,0.7643]
[1732085922216,3.22064,3105.0,3104.6,0.7643]
[1732085922436,3.22074,3104.9,3104.6,0.7643]
[1732085923144,3.22074,3104.9,3104.4,0.7643]
[1732085923738,3.22093,3104.7,3104.4,0.7643]
[1732085923937,3.22077,3104.9,3104.4,0.7643]
[1732085924166,3.22082,3104.8,3104.4,0.7643]
[1732085926565,3.22069,3105.0,3104.4,3.98552]
[1732085926861,3.22073,3104.9,3104.4,0.7643]
[1732085927272,3.22087,3104.8,3104.4,0.7643]
[1732085927431,3.22073,3104.9,3104.4,0.7643]
[1732085927631,3.22082,3104.8,3104.4,0.7643]
[1732085928032,3.22082,3104.8,3104.5,0.03729792]
[1732085928964,3.22094,3104.7,3104.5,0.03729792]
[1732085929477,3.22102,3104.6,3104.5,0.03729792]
[1732085929684,3.22137,3104.3,3103.8,0.7643]
[1732085930032,3.22137,3104.3,3103.9,0.03735675]
[1732085931574,3.22125,3104.4,3103.9,0.03735675]
[1732085932082,3.2214,3104.3,3103.9,0.03735675]
[1732085932285,3.22155,3104.1,3103.9,0.03735675]
[1732085935855,3.22164,3104.0,3103.9,0.03735675]
[1732085936057,3.865959,3104.0,3103.9,0.03735675]
[1732085936443,3.865959,3104.0,3103.6,0.7643]
[1732085936658,3.865959,3104.0,3103.9,0.03731202]
[1732085936863,3.865959,3104.0,3103.6,0.7643]
[1732085937042,3.865959,3104.0,3103.9,0.03731202]
[1732085937241,3.22177,3103.9,3103.6,0.7643]
[1732085937455,3.9305339,3103.9,3103.6,0.7643]
[1732085938161,3.9305339,3103.9,3103.4,0.7643]
[1732085938885,3.22177,3103.9,3103.4,3.98655]
[1732085939457,4.05437,3104.3,3103.4,0.7643]
[1732085939697,4.05437,3104.3,3103.6,3.22197]
[1732085939698,0.405437,3104.2,3103.6,3.22197]
[1732085939881,3.626877,3104.2,3103.6,3.22197]
[1732085940271,0.833,3104.3,3103.5,0.06443962]
[1732085940609,3.22123,3104.4,3103.6,0.7643]
[1732085940758,3.22123,3104.4,3103.8,3.22184]
[1732085940962,3.22125,3104.4,3103.8,3.22184]
[1732085941259,3.6076846,3104.5,3103.8,3.22184]
[1732085941570,3.2215,3104.2,3103.6,3.98634]
[1732085941770,3.22135,3104.3,3103.7,3.22193]
[1732085941975,3.22151,3104.2,3103.6,3.98634]
[1732085942187,3.62005185,3104.2,3103.6,3.98634]
[1732085942389,3.62005185,3104.2,3103.6,7.20834]
[1732085942587,3.22151,3104.2,3103.6,3.9863]
[1732085943117,0.833,3104.1,3103.6,3.9863]
[1732085943405,3.22165,3104.0,3103.4,3.98653]
[1732085943712,3.22165,3104.0,3103.5,3.22213]
[1732085943917,3.22186,3103.8,3103.2,3.22241]
[1732085944069,3.22165,3104.0,3103.3,3.22235]
[1732085944407,3.22191,3103.8,3103.2,3.22245]
[1732085944972,3.6677101,3104.0,3103.2,3.22245]
[1732085945309,3.22176,3103.9,3103.2,6.44483]
[1732085945518,3.22187,3103.8,3103.2,3.22238]
[1732085945820,0.45007101,3103.9,3103.2,3.22238]
[1732085945821,3.22197,3103.7,3103.2,3.22238]
[1732085946004,3.22169,3104.0,3103.2,3.22238]
[1732085946174,3.22191,3103.8,3103.3,0.03748063]
[1732085946568,3.22191,3103.8,3103.2,3.22238]
[1732085946772,3.22191,3103.8,3103.4,0.03754671]
[1732085947022,7.088221,3103.8,3103.3,0.03753001]
[1732085947183,4.05496,3103.7,3103.5,0.03749742]
[1732085947393,4.05496,3103.7,3103.4,0.03751371]
[1732085947698,4.782647,3103.7,3103.5,0.03747267]
[1732085948016,1.560687,3103.7,3103.2,3.22238]
[1732085948212,1.560687,3103.7,3103.6,0.03744813]
[1732085948421,1.560687,3103.7,3103.2,3.22238]
[1732085948750,0.833,3103.9,3103.4,3.22221]
[1732085949212,0.833,3103.9,3103.5,0.03748092]
[1732085949412,4.05475,3103.9,3103.5,0.03748092]
[1732085949617,0.405475,3103.8,3103.5,0.03748092]
[1732085951394,3.627355,3103.8,3103.2,3.22242]
[1732085951595,0.405475,3103.8,3103.6,0.03750163]
[1732085951822,3.22218,3103.5,3103.0,3.22265]
[1732085952129,0.8147,3103.4,3103.0,3.22265]
[1732085954733,0.8147,3103.4,3103.1,3.2225]
[1732085954934,0.8147,3103.7,3102.9,0.7748]
[1732085955087,0.8147,3103.7,3103.3,3.22235]
[1732085955603,6.22161,3104.1,3103.5,3.22216]
[1732085955822,4.98068,3104.0,3103.5,3.22216]
[1732085955987,1.75901,3104.0,3103.6,3.22206]
[1732085956325,1.75901,3104.0,3103.4,3.997]
[1732085956326,4.03635,3104.0,3103.4,3.997]
[1732085956902,4.03635,3104.0,3103.4,0.7748]
[1732085957144,0.8147,3104.0,3103.5,3.22213]
[1732085957443,0.8147,3103.7,3103.2,3.22239]
[1732085957603,0.8147,3103.7,3103.3,3.2223]
[1732085958195,0.8147,3103.7,3103.4,3.22226]
[1732085958703,0.8147,3104.0,3103.4,3.99706]
[1732085958896,0.8147,3104.0,3103.4,7.21923]
[1732085959228,2.1082049,3104.4,3103.4,7.21923]
[1732085959229,0.8147,3104.4,3103.9,3.22168]
[1732085959405,0.8147,3104.4,3104.0,3.22163]
[1732085959614,0.8147,3104.4,3103.9,3.99648]
[1732085959615,1.69642213,3104.4,3104.1,3.22148]
[1732085959938,7.3347,3104.6,3104.2,3.22137]
[1732085961294,8.390254,3104.6,3104.3,0.0373689]
[1732085961530,8.390254,3104.6,3104.2,3.22137]
[1732085961834,8.390254,3104.6,3104.3,0.0373689]
[1732085962227,8.390254,3104.6,3104.2,3.22137]
[1732085962434,8.390254,3104.6,3104.4,0.03734437]
[1732085962653,8.390254,3104.6,3104.3,0.0373689]
[1732085962852,8.390254,3104.6,3104.5,0.03731984]
[1732085963031,7.3347,3104.6,3104.4,0.03734437]
[1732085963233,10.55572,3104.6,3104.5,0.03731984]
[1732085963611,10.55572,3104.6,3104.0,3.22163]
[1732085963813,1.055572,3104.5,3104.0,3.22163]
[1732085964038,1.055572,3104.5,3104.1,3.22154]
[1732085965153,7.3347,3104.6,3104.1,3.22154]
[1732085965154,6.52,3104.6,3104.1,3.22154]
[1732085965352,6.52,3104.6,3103.9,0.7748]
[1732085965353,3.22129,3104.4,3103.9,0.7748]
[1732085965651,3.9857,3104.5,3103.9,3.22174]
[1732085965817,4.6377,3104.5,3103.9,3.22174]
[1732085967258,6.52,3104.6,3104.1,3.22153]
[1732085967259,9.74109,3104.6,3104.1,3.22153]
[1732085967618,6.52,3104.6,3104.1,3.22153]
[1732085967818,6.52,3104.6,3103.5,3.22216]
[1732085967819,3.2,3104.6,3104.5,3.22113]
[1732085968048,0.7645,3105.0,3104.6,3.22098]
[1732085971076,0.8029,3105.3,3104.7,3.2209]
[1732085971223,0.8029,3105.3,3104.8,3.2208]
[1732085971423,0.8029,3105.3,3104.8,3.2580564]
[1732085971664,0.7780154,3105.2,3104.6,3.22098]
[1732085972028,0.7780154,3105.2,3104.7,0.03727462]
[1732085972227,0.7780154,3105.2,3104.7,3.25817462]
[1732085973324,3.9984354,3105.2,3104.7,3.25817462]
[1732085973643,0.80217054,3105.1,3104.7,0.03727462]
[1732085973841,3.2206,3105.1,3104.7,0.03727462]
[1732085974051,3.2206,3105.1,3104.5,3.22112]
[1732085974345,3.22061,3105.0,3104.5,3.22112]
[1732085974553,0.8029,3104.9,3104.6,0.03729848]
[1732085974757,1.124961,3104.9,3104.6,0.03729848]
[1732085975583,4.345741,3104.9,3104.6,0.03729848]
[1732085975947,4.345741,3104.9,3104.3,3.22128]
[1732085976267,3.22083,3104.8,3104.4,0.03734754]
[1732085976473,0.7566351,3104.8,3104.4,3.25857754]
[1732085976993,3.9774651,3104.8,3104.4,0.03734754]
[1732085977288,4.02403,3104.5,3104.4,0.03734754]
[1732085977443,0.8029,3104.5,3104.0,3.22164]
[1732085977647,0.8029,3104.5,3104.4,0.03734391]
[1732085977878,1.25309965,3104.5,3104.1,3.22151]
[1732085978079,1.25309965,3104.5,3104.4,0.03734391]
[1732085978286,1.25309965,3104.5,3104.2,3.22143]
[1732085978466,0.8029,3104.5,3104.4,0.03734391]
[1732085978829,4.02375,3104.8,3104.4,0.03734391]
[1732085979093,0.402375,3104.7,3104.3,3.22132]
[1732085979258,0.402375,3104.7,3104.5,0.0373346]
[1732085979458,0.402375,3104.7,3104.4,0.03735913]
[1732085979694,0.402375,3104.7,3104.6,0.03731006]
[1732085979855,0.402375,3104.7,3104.5,0.0373346]
[1732085980047,0.402375,3104.7,3104.6,0.03731006]
[1732085980887,0.8029,3104.8,3104.3,3.22131]
[1732085981051,0.8029,3104.8,3104.6,0.03731006]
[1732085981252,0.8029,3104.8,3104.4,3.22123]
[1732085981448,1.205255,3104.8,3104.7,0.03728553]
[1732085981960,1.205255,3104.8,3104.4,3.22123]
[1732085982163,1.205255,3104.8,3104.5,0.0373346]
[1732085983861,0.7908,3104.7,3104.5,0.0373346]
[1732085984061,4.01174,3104.7,3104.5,0.0373346]
[1732085984267,4.01174,3104.7,3104.1,3.22146]
[1732085984468,4.01174,3104.7,3104.6,0.03731006]
[1732085984993,4.01174,3104.7,3104.1,4.01176]
[1732085985288,4.734987,3104.7,3104.6,0.03731006]
[1732085985496,4.734987,3104.7,3104.1,4.01176]
[1732085985656,1.514047,3104.7,3104.6,0.03731006]
[1732085985847,1.514047,3104.7,3104.2,3.22135]
[1732085986062,0.7908,3104.7,3104.6,0.03731006]
[1732085986403,0.7908,3104.7,3104.6,0.03731236]
[1732085986606,0.7908,3104.7,3104.3,3.22132]
[1732085986903,0.7908,3104.7,3104.6,0.03731236]
[1732085987195,1.191955,3104.7,3104.6,0.03731236]
[1732085987400,1.191955,3104.7,3104.3,6.44258]
[1732085987583,0.7908,3104.7,3104.6,0.03731236]
[1732085987776,0.7908,3104.7,3104.3,3.22126]
[1732085988003,0.7908,3104.7,3104.6,0.03731236]
[1732085988293,0.7908,3104.7,3104.3,3.22126]
[1732085988503,0.7908,3104.7,3104.6,0.03731236]
[1732085988672,1.191953,3104.7,3104.6,0.03731236]
[1732085989207,1.191953,3104.7,3104.3,3.22126]
[1732085989410,0.7908,3104.7,3104.6,0.03731236]
[1732085989565,0.7908,3104.7,3104.3,3.22126]
[1732085989767,0.7908,3104.7,3104.4,0.03736142]
[1732085990501,3.22113,3104.5,3104.4,0.03736142]
[1732085990676,3.622323,3104.5,3104.4,0.03736142]
[1732085990877,3.622323,3104.5,3103.9,3.22165]
[1732085991072,3.622323,3104.5,3104.4,0.03735922]
[1732085991591,3.622323,3104.5,3103.9,3.22165]
[1732085991805,3.622323,3104.5,3104.4,0.03735922]
[1732085991965,3.622323,3104.5,3103.9,3.22165]
[1732085992298,6.843533,3104.5,3104.0,0.03745738]
[1732085992519,6.843553,3104.5,3104.0,0.03745738]
[1732085992799,3.622323,3104.5,3104.0,0.03745738]
[1732085994226,3.622323,3104.5,3104.0,3.25909738]
[1732085994397,3.622323,3104.5,3104.0,0.03745738]
[1732085994907,3.22124,3104.4,3104.0,0.03745738]
[1732085995270,4.01177,3104.7,3104.0,0.03745738]
[1732085995271,3.22111,3104.6,3104.0,0.03745738]
[1732085995502,3.22113,3104.5,3104.0,3.25909738]
[1732085996913,4.01177,3104.7,3104.1,0.8244]
[1732085997075,4.01177,3104.7,3104.1,4.04587]
[1732085997276,4.01177,3104.7,3104.2,0.0374083]
[1732085998174,3.22108,3104.6,3104.2,0.0374083]
[1732085998376,3.22114,3104.5,3104.2,0.0374083]
[1732085998776,3.22133,3104.3,3104.2,0.0374083]
[1732085999072,3.22118,3104.5,3103.8,4.04617]
[1732085999272,3.22133,3104.3,3104.2,0.03736621]
[1732085999586,3.22133,3104.3,3104.2,0.0373827]
[1732085999801,3.99033,3104.3,3103.8,0.8244]
[1732086000127,3.99033,3104.3,3104.2,0.0373827]
[1732086000301,4.7516008,3104.3,3104.2,0.0373827]
[1732086007621,3.9826008,3104.3,3104.2,0.0373827]
[1732086012056,3.22127,3104.4,3104.2,0.0373827]
[1732086012256,3.2,3104.6,3104.2,0.0373827]
[1732086012457,3.2,3104.6,3104.3,0.7692]
[1732086013469,3.2,3104.6,3104.4,3.22123]
[1732086014869,3.2,3104.6,3104.3,0.7692]
[1732086015050,3.2,3104.6,3104.3,4.52761922]
[1732086015453,3.2,3104.6,3104.4,3.22121]
[1732086015656,6.44111,3105.1,3104.5,3.99033]
[1732086015845,0.8087,3105.3,3104.5,3.99033]
[1732086016162,0.8087,3105.3,3104.2,0.0373827]
[1732086016163,3.22027,3105.4,3104.8,3.2208]
[1732086016376,3.22018,3105.5,3104.9,3.98989]
[1732086016603,3.2,3105.7,3105.1,3.22044]
[1732086016732,3.2,3105.7,3105.1,3.22042]